Workbook

Sheet Asset Projection
A1: Asset Projection Calculator
B4: Initial Balance | E4: Rate Of Return | G4: Fee Rate | I4: Real ROR
B5: 500000 | E5: 5 | G5: 0 | I5: =E5-G5 -> 5
B7: Annual Additions | E7: Years to Compound | G7: Tax Rate
B8: 0 | E8: 25 | G8: 0
B13: GROSS | D13: Net of Fees | F13: Net of Taxes | H13: Net of Fees & Taxes
A14: Year | B14: Balance | C14: Interest | D14: Balance After Fees | E14: Fees | F14: Balance After Taxes | G14: Taxes | H14: Balance After Fees & Taxes | I14: Taxes & Fees
A15: =IF($E$8=0," ",1) -> 1 | B15: =IF(+B5+B8=0," ",+B5+B8) -> 500000 | C15: =IF(+B15*($E$5/100)=0," ",+B15*($E$5/100)) -> 25000 | D15: =IF(+B5+B8=0," ",+B5+B8) -> 500000 | E15: =IF(+D15*($I$5/100)=0,0,+(B15+C15)*($G$5/100)) -> 0 | F15: =IF(+B5+B8=0," ",+B5+B8) -> 500000 | G15: =IF(+F15*($G$8/100)=0,0,+C15*($G$8/100)) -> 0 | H15: =IF(+B5+B8=0," ",+B5+B8) -> 500000 | I15: =IF(+C15*($G$8/100)=0,E15+G15,E15+G15) -> 0
A16: =IF(A15=" "," ",IF(A15="Totals"," ",IF(A15=$E$8,"Totals",IF(A15<$E$8,A15+1," ")))) -> 2 | B16: =IF(+A16="Totals",+B15+C15,IF(+A15="Totals"," ",IF(+A15=" "," ",+B15+C15+$B$8))) -> 525000 | C16: =IF(A16="Totals",SUM($C$15),IF(A15="Totals"," ",IF(A15=" "," ",+B16*($E$5/100)))) -> 26250 | D16: =IF(+A16="Totals",+D15+(C15-E15),IF(+A15="Totals"," ",IF(+A15=" "," ",+D15+$B$8+(C15-E15)))) -> 525000 | E16: =IF(A16="Totals",SUM($E$15),IF(A15="Totals"," ",IF(A15=" "," ",+(B16+C16)*($G$5/100)))) -> 0 | F16: =IF(+A16="Totals",+F15+(C15-G15),IF(+A15="Totals"," ",IF(+A15=" "," ",+F15+$B$8+(C15-G15)))) -> 525000 | G16: =IF(A16="Totals",SUM($G$15),IF(A15="Totals"," ",IF(A15=" "," ",+C16*($G$8/100)))) -> 0 | H16: =IF(A16="Totals",+H15+C15-I15,IF(+A15="Totals"," ",IF(+A15=" "," ",+H15+C15+$B$8-I15))) -> 525000 | I16: =IF(+A16="Totals",SUM($I$15),IF(A15="Totals"," ",IF(A15=" "," ",E16+G16))) -> 0
A17: 3 | B17: =IF(+A17="Totals",+B16+C16,IF(+A16="Totals"," ",IF(+A16=" "," ",+B16+C16+$B$8))) -> 551250 | C17: =IF(A17="Totals",SUM(C15:$C$16),IF(A16="Totals"," ",IF(A16=" "," ",+B17*($E$5/100)))) -> 27562.5 | D17: =IF(+A17="Totals",+D16+(C16-E16),IF(+A16="Totals"," ",IF(+A16=" "," ",+D16+$B$8+(C16-E16)))) -> 551250 | E17: =IF(A17="Totals",SUM($E$15:E16),IF(A16="Totals"," ",IF(A16=" "," ",+(B17+C17)*($G$5/100)))) -> 0 | F17: =IF(+A17="Totals",+F16+(C16-G16),IF(+A16="Totals"," ",IF(+A16=" "," ",+F16+$B$8+(C16-G16)))) -> 551250 | G17: =IF(A17="Totals",SUM($G$15:G16),IF(A16="Totals"," ",IF(A16=" "," ",+C17*($G$8/100)))) -> 0 | H17: =IF(A17="Totals",+H16+C16-I16,IF(+A16="Totals"," ",IF(+A16=" "," ",+H16+C16+$B$8-I16))) -> 551250 | I17: =IF(+A17="Totals",SUM($I$15:I16),IF(A16="Totals"," ",IF(A16=" "," ",E17+G17))) -> 0
A18: 4 | B18: =IF(+A18="Totals",+B17+C17,IF(+A17="Totals"," ",IF(+A17=" "," ",+B17+C17+$B$8))) -> 578812.5 | C18: =IF(A18="Totals",SUM(C15:$C$17),IF(A17="Totals"," ",IF(A17=" "," ",+B18*($E$5/100)))) -> 28940.625 | D18: =IF(+A18="Totals",+D17+(C17-E17),IF(+A17="Totals"," ",IF(+A17=" "," ",+D17+$B$8+(C17-E17)))) -> 578812.5 | E18: =IF(A18="Totals",SUM($E$15:E17),IF(A17="Totals"," ",IF(A17=" "," ",+(B18+C18)*($G$5/100)))) -> 0 | F18: =IF(+A18="Totals",+F17+(C17-G17),IF(+A17="Totals"," ",IF(+A17=" "," ",+F17+$B$8+(C17-G17)))) -> 578812.5 | G18: =IF(A18="Totals",SUM($G$15:G17),IF(A17="Totals"," ",IF(A17=" "," ",+C18*($G$8/100)))) -> 0 | H18: =IF(A18="Totals",+H17+C17-I17,IF(+A17="Totals"," ",IF(+A17=" "," ",+H17+C17+$B$8-I17))) -> 578812.5 | I18: =IF(+A18="Totals",SUM($I$15:I17),IF(A17="Totals"," ",IF(A17=" "," ",E18+G18))) -> 0
A19: 5 | B19: 607753.125 | C19: =IF(A19="Totals",SUM(C15:$C$18),IF(A18="Totals"," ",IF(A18=" "," ",+B19*($E$5/100)))) -> 30387.65625 | D19: 607753.125 | E19: =IF(A19="Totals",SUM($E$15:E18),IF(A18="Totals"," ",IF(A18=" "," ",+(B19+C19)*($G$5/100)))) -> 0 | F19: =IF(+A19="Totals",+F18+(C18-G18),IF(+A18="Totals"," ",IF(+A18=" "," ",+F18+$B$8+(C18-G18)))) -> 607753.125 | G19: =IF(A19="Totals",SUM($G$15:G18),IF(A18="Totals"," ",IF(A18=" "," ",+C19*($G$8/100)))) -> 0 | H19: 607753.125 | I19: =IF(+A19="Totals",SUM($I$15:I18),IF(A18="Totals"," ",IF(A18=" "," ",E19+G19))) -> 0
A20: 6 | B20: 638140.7812 | C20: =IF(A20="Totals",SUM(C15:$C$19),IF(A19="Totals"," ",IF(A19=" "," ",+B20*($E$5/100)))) -> 31907.03906 | D20: 638140.7812 | E20: =IF(A20="Totals",SUM($E$15:E19),IF(A19="Totals"," ",IF(A19=" "," ",+(B20+C20)*($G$5/100)))) -> 0 | F20: =IF(+A20="Totals",+F19+(C19-G19),IF(+A19="Totals"," ",IF(+A19=" "," ",+F19+$B$8+(C19-G19)))) -> 638140.7812 | G20: =IF(A20="Totals",SUM($G$15:G19),IF(A19="Totals"," ",IF(A19=" "," ",+C20*($G$8/100)))) -> 0 | H20: 638140.7812 | I20: =IF(+A20="Totals",SUM($I$15:I19),IF(A19="Totals"," ",IF(A19=" "," ",E20+G20))) -> 0
A21: 7 | B21: 670047.8203 | C21: =IF(A21="Totals",SUM(C15:$C$20),IF(A20="Totals"," ",IF(A20=" "," ",+B21*($E$5/100)))) -> 33502.39102 | D21: 670047.8203 | E21: =IF(A21="Totals",SUM($E$15:E20),IF(A20="Totals"," ",IF(A20=" "," ",+(B21+C21)*($G$5/100)))) -> 0 | F21: 670047.8203 | G21: =IF(A21="Totals",SUM($G$15:G20),IF(A20="Totals"," ",IF(A20=" "," ",+C21*($G$8/100)))) -> 0 | H21: 670047.8203 | I21: =IF(+A21="Totals",SUM($I$15:I20),IF(A20="Totals"," ",IF(A20=" "," ",E21+G21))) -> 0
A22: 8 | B22: 703550.2113 | C22: =IF(A22="Totals",SUM(C15:$C$21),IF(A21="Totals"," ",IF(A21=" "," ",+B22*($E$5/100)))) -> 35177.51057 | D22: 703550.2113 | E22: =IF(A22="Totals",SUM($E$15:E21),IF(A21="Totals"," ",IF(A21=" "," ",+(B22+C22)*($G$5/100)))) -> 0 | F22: 703550.2113 | G22: =IF(A22="Totals",SUM($G$15:G21),IF(A21="Totals"," ",IF(A21=" "," ",+C22*($G$8/100)))) -> 0 | H22: 703550.2113 | I22: =IF(+A22="Totals",SUM($I$15:I21),IF(A21="Totals"," ",IF(A21=" "," ",E22+G22))) -> 0
A23: 9 | B23: 738727.7219 | C23: =IF(A23="Totals",SUM(C15:$C$22),IF(A22="Totals"," ",IF(A22=" "," ",+B23*($E$5/100)))) -> 36936.38609 | D23: 738727.7219 | E23: =IF(A23="Totals",SUM($E$15:E22),IF(A22="Totals"," ",IF(A22=" "," ",+(B23+C23)*($G$5/100)))) -> 0 | F23: 738727.7219 | G23: =IF(A23="Totals",SUM($G$15:G22),IF(A22="Totals"," ",IF(A22=" "," ",+C23*($G$8/100)))) -> 0 | H23: 738727.7219 | I23: =IF(+A23="Totals",SUM($I$15:I22),IF(A22="Totals"," ",IF(A22=" "," ",E23+G23))) -> 0
A24: 10 | B24: 775664.108 | C24: =IF(A24="Totals",SUM(C15:$C$23),IF(A23="Totals"," ",IF(A23=" "," ",+B24*($E$5/100)))) -> 38783.2054 | D24: 775664.108 | E24: =IF(A24="Totals",SUM($E$15:E23),IF(A23="Totals"," ",IF(A23=" "," ",+(B24+C24)*($G$5/100)))) -> 0 | F24: 775664.108 | G24: =IF(A24="Totals",SUM($G$15:G23),IF(A23="Totals"," ",IF(A23=" "," ",+C24*($G$8/100)))) -> 0 | H24: 775664.108 | I24: =IF(+A24="Totals",SUM($I$15:I23),IF(A23="Totals"," ",IF(A23=" "," ",E24+G24))) -> 0
A25: 11 | B25: 814447.3134 | C25: =IF(A25="Totals",SUM(C15:$C$24),IF(A24="Totals"," ",IF(A24=" "," ",+B25*($E$5/100)))) -> 40722.36567 | D25: 814447.3134 | E25: =IF(A25="Totals",SUM($E$15:E24),IF(A24="Totals"," ",IF(A24=" "," ",+(B25+C25)*($G$5/100)))) -> 0 | F25: 814447.3134 | G25: =IF(A25="Totals",SUM($G$15:G24),IF(A24="Totals"," ",IF(A24=" "," ",+C25*($G$8/100)))) -> 0 | H25: 814447.3134 | I25: =IF(+A25="Totals",SUM($I$15:I24),IF(A24="Totals"," ",IF(A24=" "," ",E25+G25))) -> 0
A26: 12 | B26: 855169.6791 | C26: =IF(A26="Totals",SUM(C15:$C$25),IF(A25="Totals"," ",IF(A25=" "," ",+B26*($E$5/100)))) -> 42758.48395 | D26: 855169.6791 | E26: =IF(A26="Totals",SUM($E$15:E25),IF(A25="Totals"," ",IF(A25=" "," ",+(B26+C26)*($G$5/100)))) -> 0 | F26: 855169.6791 | G26: =IF(A26="Totals",SUM($G$15:G25),IF(A25="Totals"," ",IF(A25=" "," ",+C26*($G$8/100)))) -> 0 | H26: 855169.6791 | I26: =IF(+A26="Totals",SUM($I$15:I25),IF(A25="Totals"," ",IF(A25=" "," ",E26+G26))) -> 0
A27: 13 | B27: 897928.163 | C27: =IF(A27="Totals",SUM(C15:$C$26),IF(A26="Totals"," ",IF(A26=" "," ",+B27*($E$5/100)))) -> 44896.40815 | D27: 897928.163 | E27: =IF(A27="Totals",SUM($E$15:E26),IF(A26="Totals"," ",IF(A26=" "," ",+(B27+C27)*($G$5/100)))) -> 0 | F27: 897928.163 | G27: =IF(A27="Totals",SUM($G$15:G26),IF(A26="Totals"," ",IF(A26=" "," ",+C27*($G$8/100)))) -> 0 | H27: 897928.163 | I27: =IF(+A27="Totals",SUM($I$15:I26),IF(A26="Totals"," ",IF(A26=" "," ",E27+G27))) -> 0
A28: 14 | B28: 942824.5712 | C28: =IF(A28="Totals",SUM(C15:$C$27),IF(A27="Totals"," ",IF(A27=" "," ",+B28*($E$5/100)))) -> 47141.22856 | D28: 942824.5712 | E28: =IF(A28="Totals",SUM($E$15:E27),IF(A27="Totals"," ",IF(A27=" "," ",+(B28+C28)*($G$5/100)))) -> 0 | F28: 942824.5712 | G28: =IF(A28="Totals",SUM($G$15:G27),IF(A27="Totals"," ",IF(A27=" "," ",+C28*($G$8/100)))) -> 0 | H28: 942824.5712 | I28: =IF(+A28="Totals",SUM($I$15:I27),IF(A27="Totals"," ",IF(A27=" "," ",E28+G28))) -> 0
A29: 15 | B29: 989965.7997 | C29: =IF(A29="Totals",SUM(C15:$C$28),IF(A28="Totals"," ",IF(A28=" "," ",+B29*($E$5/100)))) -> 49498.28999 | D29: 989965.7997 | E29: =IF(A29="Totals",SUM($E$15:E28),IF(A28="Totals"," ",IF(A28=" "," ",+(B29+C29)*($G$5/100)))) -> 0 | F29: 989965.7997 | G29: =IF(A29="Totals",SUM($G$15:G28),IF(A28="Totals"," ",IF(A28=" "," ",+C29*($G$8/100)))) -> 0 | H29: 989965.7997 | I29: =IF(+A29="Totals",SUM($I$15:I28),IF(A28="Totals"," ",IF(A28=" "," ",E29+G29))) -> 0
A30: 16 | B30: 1039464.09 | C30: =IF(A30="Totals",SUM(C15:$C$29),IF(A29="Totals"," ",IF(A29=" "," ",+B30*($E$5/100)))) -> 51973.20449 | D30: 1039464.09 | E30: =IF(A30="Totals",SUM($E$15:E29),IF(A29="Totals"," ",IF(A29=" "," ",+(B30+C30)*($G$5/100)))) -> 0 | F30: 1039464.09 | G30: =IF(A30="Totals",SUM($G$15:G29),IF(A29="Totals"," ",IF(A29=" "," ",+C30*($G$8/100)))) -> 0 | H30: 1039464.09 | I30: =IF(+A30="Totals",SUM($I$15:I29),IF(A29="Totals"," ",IF(A29=" "," ",E30+G30))) -> 0
A31: 17 | B31: 1091437.294 | C31: =IF(A31="Totals",SUM(C15:$C$30),IF(A30="Totals"," ",IF(A30=" "," ",+B31*($E$5/100)))) -> 54571.86471 | D31: 1091437.294 | E31: =IF(A31="Totals",SUM($E$15:E30),IF(A30="Totals"," ",IF(A30=" "," ",+(B31+C31)*($G$5/100)))) -> 0 | F31: 1091437.294 | G31: =IF(A31="Totals",SUM($G$15:G30),IF(A30="Totals"," ",IF(A30=" "," ",+C31*($G$8/100)))) -> 0 | H31: 1091437.294 | I31: =IF(+A31="Totals",SUM($I$15:I30),IF(A30="Totals"," ",IF(A30=" "," ",E31+G31))) -> 0
A32: 18 | B32: 1146009.159 | C32: =IF(A32="Totals",SUM(C15:$C$31),IF(A31="Totals"," ",IF(A31=" "," ",+B32*($E$5/100)))) -> 57300.45795 | D32: 1146009.159 | E32: =IF(A32="Totals",SUM($E$15:E31),IF(A31="Totals"," ",IF(A31=" "," ",+(B32+C32)*($G$5/100)))) -> 0 | F32: 1146009.159 | G32: =IF(A32="Totals",SUM($G$15:G31),IF(A31="Totals"," ",IF(A31=" "," ",+C32*($G$8/100)))) -> 0 | H32: 1146009.159 | I32: =IF(+A32="Totals",SUM($I$15:I31),IF(A31="Totals"," ",IF(A31=" "," ",E32+G32))) -> 0
A33: 19 | B33: 1203309.617 | C33: =IF(A33="Totals",SUM(C15:$C$32),IF(A32="Totals"," ",IF(A32=" "," ",+B33*($E$5/100)))) -> 60165.48084 | D33: 1203309.617 | E33: =IF(A33="Totals",SUM($E$15:E32),IF(A32="Totals"," ",IF(A32=" "," ",+(B33+C33)*($G$5/100)))) -> 0 | F33: 1203309.617 | G33: =IF(A33="Totals",SUM($G$15:G32),IF(A32="Totals"," ",IF(A32=" "," ",+C33*($G$8/100)))) -> 0 | H33: 1203309.617 | I33: =IF(+A33="Totals",SUM($I$15:I32),IF(A32="Totals"," ",IF(A32=" "," ",E33+G33))) -> 0
A34: 20 | B34: 1263475.098 | C34: =IF(A34="Totals",SUM(C15:$C$33),IF(A33="Totals"," ",IF(A33=" "," ",+B34*($E$5/100)))) -> 63173.75488 | D34: 1263475.098 | E34: =IF(A34="Totals",SUM($E$15:E33),IF(A33="Totals"," ",IF(A33=" "," ",+(B34+C34)*($G$5/100)))) -> 0 | F34: 1263475.098 | G34: =IF(A34="Totals",SUM($G$15:G33),IF(A33="Totals"," ",IF(A33=" "," ",+C34*($G$8/100)))) -> 0 | H34: 1263475.098 | I34: =IF(+A34="Totals",SUM($I$15:I33),IF(A33="Totals"," ",IF(A33=" "," ",E34+G34))) -> 0
A35: 21 | B35: 1326648.853 | C35: =IF(A35="Totals",SUM(C15:$C$34),IF(A34="Totals"," ",IF(A34=" "," ",+B35*($E$5/100)))) -> 66332.44263 | D35: 1326648.853 | E35: =IF(A35="Totals",SUM($E$15:E34),IF(A34="Totals"," ",IF(A34=" "," ",+(B35+C35)*($G$5/100)))) -> 0 | F35: 1326648.853 | G35: =IF(A35="Totals",SUM($G$15:G34),IF(A34="Totals"," ",IF(A34=" "," ",+C35*($G$8/100)))) -> 0 | H35: 1326648.853 | I35: =IF(+A35="Totals",SUM($I$15:I34),IF(A34="Totals"," ",IF(A34=" "," ",E35+G35))) -> 0
A36: 22 | B36: 1392981.295 | C36: =IF(A36="Totals",SUM(C15:$C$35),IF(A35="Totals"," ",IF(A35=" "," ",+B36*($E$5/100)))) -> 69649.06476 | D36: 1392981.295 | E36: =IF(A36="Totals",SUM($E$15:E35),IF(A35="Totals"," ",IF(A35=" "," ",+(B36+C36)*($G$5/100)))) -> 0 | F36: 1392981.295 | G36: =IF(A36="Totals",SUM($G$15:G35),IF(A35="Totals"," ",IF(A35=" "," ",+C36*($G$8/100)))) -> 0 | H36: 1392981.295 | I36: =IF(+A36="Totals",SUM($I$15:I35),IF(A35="Totals"," ",IF(A35=" "," ",E36+G36))) -> 0
A37: 23 | B37: 1462630.36 | C37: =IF(A37="Totals",SUM(C15:$C$36),IF(A36="Totals"," ",IF(A36=" "," ",+B37*($E$5/100)))) -> 73131.518 | D37: 1462630.36 | E37: =IF(A37="Totals",SUM($E$15:E36),IF(A36="Totals"," ",IF(A36=" "," ",+(B37+C37)*($G$5/100)))) -> 0 | F37: 1462630.36 | G37: =IF(A37="Totals",SUM($G$15:G36),IF(A36="Totals"," ",IF(A36=" "," ",+C37*($G$8/100)))) -> 0 | H37: 1462630.36 | I37: =IF(+A37="Totals",SUM($I$15:I36),IF(A36="Totals"," ",IF(A36=" "," ",E37+G37))) -> 0
A38: 24 | B38: 1535761.878 | C38: =IF(A38="Totals",SUM(C15:$C$37),IF(A37="Totals"," ",IF(A37=" "," ",+B38*($E$5/100)))) -> 76788.0939 | D38: 1535761.878 | E38: =IF(A38="Totals",SUM($E$15:E37),IF(A37="Totals"," ",IF(A37=" "," ",+(B38+C38)*($G$5/100)))) -> 0 | F38: 1535761.878 | G38: =IF(A38="Totals",SUM($G$15:G37),IF(A37="Totals"," ",IF(A37=" "," ",+C38*($G$8/100)))) -> 0 | H38: 1535761.878 | I38: =IF(+A38="Totals",SUM($I$15:I37),IF(A37="Totals"," ",IF(A37=" "," ",E38+G38))) -> 0
A39: 25 | B39: 1612549.972 | C39: =IF(A39="Totals",SUM(C15:$C$38),IF(A38="Totals"," ",IF(A38=" "," ",+B39*($E$5/100)))) -> 80627.49859 | D39: 1612549.972 | E39: =IF(A39="Totals",SUM($E$15:E38),IF(A38="Totals"," ",IF(A38=" "," ",+(B39+C39)*($G$5/100)))) -> 0 | F39: 1612549.972 | G39: =IF(A39="Totals",SUM($G$15:G38),IF(A38="Totals"," ",IF(A38=" "," ",+C39*($G$8/100)))) -> 0 | H39: 1612549.972 | I39: =IF(+A39="Totals",SUM($I$15:I38),IF(A38="Totals"," ",IF(A38=" "," ",E39+G39))) -> 0
A40: Totals | B40: 1693177.47 | C40: =IF(A40="Totals",SUM(C15:$C$39),IF(A39="Totals"," ",IF(A39=" "," ",+B40*($E$5/100)))) -> 1193177.47 | D40: 1693177.47 | E40: =IF(A40="Totals",SUM($E$15:E39),IF(A39="Totals"," ",IF(A39=" "," ",+(B40+C40)*($G$5/100)))) -> 0 | F40: 1693177.47 | G40: =IF(A40="Totals",SUM($G$15:G39),IF(A39="Totals"," ",IF(A39=" "," ",+C40*($G$8/100)))) -> 0 | H40: 1693177.47 | I40: =IF(+A40="Totals",SUM($I$15:I39),IF(A39="Totals"," ",IF(A39=" "," ",E40+G40))) -> 0
C41: =IF(A41="Totals",SUM(C15:$C$40),IF(A40="Totals"," ",IF(A40=" "," ",+B41*($E$5/100)))) ->  | E41: =IF(A41="Totals",SUM($E$15:E40),IF(A40="Totals"," ",IF(A40=" "," ",+(B41+C41)*($G$5/100)))) ->  | G41: =IF(A41="Totals",SUM($G$15:G40),IF(A40="Totals"," ",IF(A40=" "," ",+C41*($G$8/100)))) ->  | I41: =IF(+A41="Totals",SUM($I$15:I40),IF(A40="Totals"," ",IF(A40=" "," ",E41+G41))) -> 
C42: =IF(A42="Totals",SUM(C15:$C$41),IF(A41="Totals"," ",IF(A41=" "," ",+B42*($E$5/100)))) ->  | E42: =IF(A42="Totals",SUM($E$15:E41),IF(A41="Totals"," ",IF(A41=" "," ",+(B42+C42)*($G$5/100)))) ->  | G42: =IF(A42="Totals",SUM($G$15:G41),IF(A41="Totals"," ",IF(A41=" "," ",+C42*($G$8/100)))) ->  | I42: =IF(+A42="Totals",SUM($I$15:I41),IF(A41="Totals"," ",IF(A41=" "," ",E42+G42))) -> 
C43: =IF(A43="Totals",SUM(C15:$C$42),IF(A42="Totals"," ",IF(A42=" "," ",+B43*($E$5/100)))) ->  | E43: =IF(A43="Totals",SUM($E$15:E42),IF(A42="Totals"," ",IF(A42=" "," ",+(B43+C43)*($G$5/100)))) ->  | G43: =IF(A43="Totals",SUM($G$15:G42),IF(A42="Totals"," ",IF(A42=" "," ",+C43*($G$8/100)))) ->  | I43: =IF(+A43="Totals",SUM($I$15:I42),IF(A42="Totals"," ",IF(A42=" "," ",E43+G43))) -> 
C44: =IF(A44="Totals",SUM(C15:$C$43),IF(A43="Totals"," ",IF(A43=" "," ",+B44*($E$5/100)))) ->  | E44: =IF(A44="Totals",SUM($E$15:E43),IF(A43="Totals"," ",IF(A43=" "," ",+(B44+C44)*($G$5/100)))) ->  | G44: =IF(A44="Totals",SUM($G$15:G43),IF(A43="Totals"," ",IF(A43=" "," ",+C44*($G$8/100)))) ->  | I44: =IF(+A44="Totals",SUM($I$15:I43),IF(A43="Totals"," ",IF(A43=" "," ",E44+G44))) -> 
C45: =IF(A45="Totals",SUM(C15:$C$44),IF(A44="Totals"," ",IF(A44=" "," ",+B45*($E$5/100)))) ->  | E45: =IF(A45="Totals",SUM($E$15:E44),IF(A44="Totals"," ",IF(A44=" "," ",+(B45+C45)*($G$5/100)))) ->  | G45: =IF(A45="Totals",SUM($G$15:G44),IF(A44="Totals"," ",IF(A44=" "," ",+C45*($G$8/100)))) ->  | I45: =IF(+A45="Totals",SUM($I$15:I44),IF(A44="Totals"," ",IF(A44=" "," ",E45+G45))) -> 
C46: =IF(A46="Totals",SUM(C15:$C$45),IF(A45="Totals"," ",IF(A45=" "," ",+B46*($E$5/100)))) ->  | E46: =IF(A46="Totals",SUM($E$15:E45),IF(A45="Totals"," ",IF(A45=" "," ",+(B46+C46)*($G$5/100)))) ->  | G46: =IF(A46="Totals",SUM($G$15:G45),IF(A45="Totals"," ",IF(A45=" "," ",+C46*($G$8/100)))) ->  | I46: =IF(+A46="Totals",SUM($I$15:I45),IF(A45="Totals"," ",IF(A45=" "," ",E46+G46))) -> 
C47: =IF(A47="Totals",SUM(C15:$C$46),IF(A46="Totals"," ",IF(A46=" "," ",+B47*($E$5/100)))) ->  | E47: =IF(A47="Totals",SUM($E$15:E46),IF(A46="Totals"," ",IF(A46=" "," ",+(B47+C47)*($G$5/100)))) ->  | G47: =IF(A47="Totals",SUM($G$15:G46),IF(A46="Totals"," ",IF(A46=" "," ",+C47*($G$8/100)))) ->  | I47: =IF(+A47="Totals",SUM($I$15:I46),IF(A46="Totals"," ",IF(A46=" "," ",E47+G47))) -> 
A48: =IF(A47=" "," ",IF(A47="Totals"," ",IF(A47=$E$8,"Totals",IF(A47<$E$8,A47+1," ")))) ->  | C48: =IF(A48="Totals",SUM(C15:$C$47),IF(A47="Totals"," ",IF(A47=" "," ",+B48*($E$5/100)))) ->  | E48: =IF(A48="Totals",SUM($E$15:E47),IF(A47="Totals"," ",IF(A47=" "," ",+(B48+C48)*($G$5/100)))) ->  | G48: =IF(A48="Totals",SUM($G$15:G47),IF(A47="Totals"," ",IF(A47=" "," ",+C48*($G$8/100)))) ->  | I48: =IF(+A48="Totals",SUM($I$15:I47),IF(A47="Totals"," ",IF(A47=" "," ",E48+G48))) -> 
C49: =IF(A49="Totals",SUM(C15:$C$48),IF(A48="Totals"," ",IF(A48=" "," ",+B49*($E$5/100)))) ->  | E49: =IF(A49="Totals",SUM($E$15:E48),IF(A48="Totals"," ",IF(A48=" "," ",+(B49+C49)*($G$5/100)))) ->  | G49: =IF(A49="Totals",SUM($G$15:G48),IF(A48="Totals"," ",IF(A48=" "," ",+C49*($G$8/100)))) ->  | I49: =IF(+A49="Totals",SUM($I$15:I48),IF(A48="Totals"," ",IF(A48=" "," ",E49+G49))) -> 
C50: =IF(A50="Totals",SUM(C15:$C$49),IF(A49="Totals"," ",IF(A49=" "," ",+B50*($E$5/100)))) ->  | E50: =IF(A50="Totals",SUM($E$15:E49),IF(A49="Totals"," ",IF(A49=" "," ",+(B50+C50)*($G$5/100)))) ->  | G50: =IF(A50="Totals",SUM($G$15:G49),IF(A49="Totals"," ",IF(A49=" "," ",+C50*($G$8/100)))) ->  | I50: =IF(+A50="Totals",SUM($I$15:I49),IF(A49="Totals"," ",IF(A49=" "," ",E50+G50))) -> 
C51: =IF(A51="Totals",SUM(C15:$C$50),IF(A50="Totals"," ",IF(A50=" "," ",+B51*($E$5/100)))) ->  | E51: =IF(A51="Totals",SUM($E$15:E50),IF(A50="Totals"," ",IF(A50=" "," ",+(B51+C51)*($G$5/100)))) ->  | G51: =IF(A51="Totals",SUM($G$15:G50),IF(A50="Totals"," ",IF(A50=" "," ",+C51*($G$8/100)))) ->  | I51: =IF(+A51="Totals",SUM($I$15:I50),IF(A50="Totals"," ",IF(A50=" "," ",E51+G51))) -> 
C52: =IF(A52="Totals",SUM(C15:$C$51),IF(A51="Totals"," ",IF(A51=" "," ",+B52*($E$5/100)))) ->  | E52: =IF(A52="Totals",SUM($E$15:E51),IF(A51="Totals"," ",IF(A51=" "," ",+(B52+C52)*($G$5/100)))) ->  | G52: =IF(A52="Totals",SUM($G$15:G51),IF(A51="Totals"," ",IF(A51=" "," ",+C52*($G$8/100)))) ->  | I52: =IF(+A52="Totals",SUM($I$15:I51),IF(A51="Totals"," ",IF(A51=" "," ",E52+G52))) -> 
C53: =IF(A53="Totals",SUM(C15:$C$52),IF(A52="Totals"," ",IF(A52=" "," ",+B53*($E$5/100)))) ->  | E53: =IF(A53="Totals",SUM($E$15:E52),IF(A52="Totals"," ",IF(A52=" "," ",+(B53+C53)*($G$5/100)))) ->  | G53: =IF(A53="Totals",SUM($G$15:G52),IF(A52="Totals"," ",IF(A52=" "," ",+C53*($G$8/100)))) ->  | I53: =IF(+A53="Totals",SUM($I$15:I52),IF(A52="Totals"," ",IF(A52=" "," ",E53+G53))) -> 
C54: =IF(A54="Totals",SUM(C15:$C$53),IF(A53="Totals"," ",IF(A53=" "," ",+B54*($E$5/100)))) ->  | E54: =IF(A54="Totals",SUM($E$15:E53),IF(A53="Totals"," ",IF(A53=" "," ",+(B54+C54)*($G$5/100)))) ->  | G54: =IF(A54="Totals",SUM($G$15:G53),IF(A53="Totals"," ",IF(A53=" "," ",+C54*($G$8/100)))) ->  | I54: =IF(+A54="Totals",SUM($I$15:I53),IF(A53="Totals"," ",IF(A53=" "," ",E54+G54))) -> 
C55: =IF(A55="Totals",SUM(C15:$C$54),IF(A54="Totals"," ",IF(A54=" "," ",+B55*($E$5/100)))) ->  | E55: =IF(A55="Totals",SUM($E$15:E54),IF(A54="Totals"," ",IF(A54=" "," ",+(B55+C55)*($G$5/100)))) ->  | G55: =IF(A55="Totals",SUM($G$15:G54),IF(A54="Totals"," ",IF(A54=" "," ",+C55*($G$8/100)))) ->  | I55: =IF(+A55="Totals",SUM($I$15:I54),IF(A54="Totals"," ",IF(A54=" "," ",E55+G55))) -> 
C56: =IF(A56="Totals",SUM(C15:$C$55),IF(A55="Totals"," ",IF(A55=" "," ",+B56*($E$5/100)))) ->  | E56: =IF(A56="Totals",SUM($E$15:E55),IF(A55="Totals"," ",IF(A55=" "," ",+(B56+C56)*($G$5/100)))) ->  | G56: =IF(A56="Totals",SUM($G$15:G55),IF(A55="Totals"," ",IF(A55=" "," ",+C56*($G$8/100)))) ->  | I56: =IF(+A56="Totals",SUM($I$15:I55),IF(A55="Totals"," ",IF(A55=" "," ",E56+G56))) -> 
C57: =IF(A57="Totals",SUM(C15:$C$56),IF(A56="Totals"," ",IF(A56=" "," ",+B57*($E$5/100)))) ->  | E57: =IF(A57="Totals",SUM($E$15:E56),IF(A56="Totals"," ",IF(A56=" "," ",+(B57+C57)*($G$5/100)))) ->  | G57: =IF(A57="Totals",SUM($G$15:G56),IF(A56="Totals"," ",IF(A56=" "," ",+C57*($G$8/100)))) ->  | I57: =IF(+A57="Totals",SUM($I$15:I56),IF(A56="Totals"," ",IF(A56=" "," ",E57+G57))) -> 
C58: =IF(A58="Totals",SUM(C15:$C$57),IF(A57="Totals"," ",IF(A57=" "," ",+B58*($E$5/100)))) ->  | E58: =IF(A58="Totals",SUM($E$15:E57),IF(A57="Totals"," ",IF(A57=" "," ",+(B58+C58)*($G$5/100)))) ->  | G58: =IF(A58="Totals",SUM($G$15:G57),IF(A57="Totals"," ",IF(A57=" "," ",+C58*($G$8/100)))) ->  | I58: =IF(+A58="Totals",SUM($I$15:I57),IF(A57="Totals"," ",IF(A57=" "," ",E58+G58))) -> 
C59: =IF(A59="Totals",SUM(C15:$C$58),IF(A58="Totals"," ",IF(A58=" "," ",+B59*($E$5/100)))) ->  | E59: =IF(A59="Totals",SUM($E$15:E58),IF(A58="Totals"," ",IF(A58=" "," ",+(B59+C59)*($G$5/100)))) ->  | G59: =IF(A59="Totals",SUM($G$15:G58),IF(A58="Totals"," ",IF(A58=" "," ",+C59*($G$8/100)))) ->  | I59: =IF(+A59="Totals",SUM($I$15:I58),IF(A58="Totals"," ",IF(A58=" "," ",E59+G59))) -> 
C60: =IF(A60="Totals",SUM(C15:$C$59),IF(A59="Totals"," ",IF(A59=" "," ",+B60*($E$5/100)))) ->  | E60: =IF(A60="Totals",SUM($E$15:E59),IF(A59="Totals"," ",IF(A59=" "," ",+(B60+C60)*($G$5/100)))) ->  | G60: =IF(A60="Totals",SUM($G$15:G59),IF(A59="Totals"," ",IF(A59=" "," ",+C60*($G$8/100)))) ->  | I60: =IF(+A60="Totals",SUM($I$15:I59),IF(A59="Totals"," ",IF(A59=" "," ",E60+G60))) -> 
C61: =IF(A61="Totals",SUM(C15:$C$60),IF(A60="Totals"," ",IF(A60=" "," ",+B61*($E$5/100)))) ->  | E61: =IF(A61="Totals",SUM($E$15:E60),IF(A60="Totals"," ",IF(A60=" "," ",+(B61+C61)*($G$5/100)))) ->  | G61: =IF(A61="Totals",SUM($G$15:G60),IF(A60="Totals"," ",IF(A60=" "," ",+C61*($G$8/100)))) ->  | I61: =IF(+A61="Totals",SUM($I$15:I60),IF(A60="Totals"," ",IF(A60=" "," ",E61+G61))) -> 
C62: =IF(A62="Totals",SUM(C15:$C$61),IF(A61="Totals"," ",IF(A61=" "," ",+B62*($E$5/100)))) ->  | E62: =IF(A62="Totals",SUM($E$15:E61),IF(A61="Totals"," ",IF(A61=" "," ",+(B62+C62)*($G$5/100)))) ->  | G62: =IF(A62="Totals",SUM($G$15:G61),IF(A61="Totals"," ",IF(A61=" "," ",+C62*($G$8/100)))) ->  | I62: =IF(+A62="Totals",SUM($I$15:I61),IF(A61="Totals"," ",IF(A61=" "," ",E62+G62))) -> 
C63: =IF(A63="Totals",SUM(C15:$C$62),IF(A62="Totals"," ",IF(A62=" "," ",+B63*($E$5/100)))) ->  | E63: =IF(A63="Totals",SUM($E$15:E62),IF(A62="Totals"," ",IF(A62=" "," ",+(B63+C63)*($G$5/100)))) ->  | G63: =IF(A63="Totals",SUM($G$15:G62),IF(A62="Totals"," ",IF(A62=" "," ",+C63*($G$8/100)))) ->  | I63: =IF(+A63="Totals",SUM($I$15:I62),IF(A62="Totals"," ",IF(A62=" "," ",E63+G63))) -> 
C64: =IF(A64="Totals",SUM(C15:$C$63),IF(A63="Totals"," ",IF(A63=" "," ",+B64*($E$5/100)))) ->  | E64: =IF(A64="Totals",SUM($E$15:E63),IF(A63="Totals"," ",IF(A63=" "," ",+(B64+C64)*($G$5/100)))) ->  | G64: =IF(A64="Totals",SUM($G$15:G63),IF(A63="Totals"," ",IF(A63=" "," ",+C64*($G$8/100)))) ->  | I64: =IF(+A64="Totals",SUM($I$15:I63),IF(A63="Totals"," ",IF(A63=" "," ",E64+G64))) -> 
B65: =IF(+A65="Totals",+B64+C64,IF(+A64="Totals"," ",IF(+A64=" "," ",+B64+C64+$B$8))) ->  | C65: =IF(A65="Totals",SUM(C15:$C$64),IF(A64="Totals"," ",IF(A64=" "," ",+B65*($E$5/100)))) ->  | E65: =IF(A65="Totals",SUM($E$15:E64),IF(A64="Totals"," ",IF(A64=" "," ",+(B65+C65)*($G$5/100)))) ->  | G65: =IF(A65="Totals",SUM($G$15:G64),IF(A64="Totals"," ",IF(A64=" "," ",+C65*($G$8/100)))) ->  | I65: =IF(+A65="Totals",SUM($I$15:I64),IF(A64="Totals"," ",IF(A64=" "," ",E65+G65))) -> 

Sheet Retirement Income
A1: Retirement Income Calculator
A4: Initial Balance | F4: Rate of Return
A5: 100000 | D5: Years of | F5: 5
D6: Withdrawing
A7: Withdrawal Rate | D7: 25 | F7: Tax Rate
A8: 3 | F8: 35
B12: Beginning | D12: Gross | F12: Taxes Due | H12: Total Net
A13: Year | B13: Balance | D13: Withdrawal | F13: On Withdrawal | H13: Income
A14: =IF($D$7=0," ",1) -> 1 | B14: =IF(+$A$5=0," ",$A$5) -> 100000 | D14: =IF(+$A$8=0," ",($A$8/100)*B14) -> 3000 | F14: =IF(A14=" "," ",+D14*($F$8/100)) -> 1050 | H14: =IF(A14=" "," ",+D14-F14) -> 1950
A15: =IF(A14=" "," ",IF(A14=$D$7,"Totals",IF(A14="Totals"," ",+A14+1))) -> 2 | B15: =IF(A15=" "," ",+B14+(B14*($F$5/100)-D14)) -> 102000 | D15: =IF(A15=" "," ",IF(A15="Totals",SUM(D14),(+$A$8/100)*$B$14)) -> 3000 | F15: =IF(A15=" "," ",IF(A15="Totals",SUM(F14),+D15*($F$8/100))) -> 1050 | H15: =IF(A15=" "," ",IF(A15="Totals",SUM(H14),+D15-F15)) -> 1950
A16: 3 | B16: =IF(A16=" "," ",+B15+(B15*($F$5/100)-D15)) -> 104100 | D16: =IF(A16=" "," ",IF(A16="Totals",SUM($D$14:D15),((+$A$8/100)*$B$14))) -> 3000 | F16: =IF(A16=" "," ",IF(A16="Totals",SUM($F$14:F15),+D16*($F$8/100))) -> 1050 | H16: =IF(A16=" "," ",IF(A16="Totals",SUM($H$14:H15),+D16-F16)) -> 1950
A17: 4 | B17: =IF(A17=" "," ",+B16+(B16*($F$5/100)-D16)) -> 106305 | D17: =IF(A17=" "," ",IF(A17="Totals",SUM($D$14:D16),((+$A$8/100)*$B$14))) -> 3000 | F17: =IF(A17=" "," ",IF(A17="Totals",SUM($F$14:F16),+D17*($F$8/100))) -> 1050 | H17: =IF(A17=" "," ",IF(A17="Totals",SUM($H$14:H16),+D17-F17)) -> 1950
A18: 5 | B18: 108620.25 | D18: =IF(A18=" "," ",IF(A18="Totals",SUM($D$14:D17),((+$A$8/100)*$B$14))) -> 3000 | F18: =IF(A18=" "," ",IF(A18="Totals",SUM($F$14:F17),+D18*($F$8/100))) -> 1050 | H18: =IF(A18=" "," ",IF(A18="Totals",SUM($H$14:H17),+D18-F18)) -> 1950
A19: 6 | B19: 111051.2625 | D19: =IF(A19=" "," ",IF(A19="Totals",SUM($D$14:D18),((+$A$8/100)*$B$14))) -> 3000 | F19: =IF(A19=" "," ",IF(A19="Totals",SUM($F$14:F18),+D19*($F$8/100))) -> 1050 | H19: =IF(A19=" "," ",IF(A19="Totals",SUM($H$14:H18),+D19-F19)) -> 1950
A20: 7 | B20: 113603.8256 | D20: =IF(A20=" "," ",IF(A20="Totals",SUM($D$14:D19),((+$A$8/100)*$B$14))) -> 3000 | F20: =IF(A20=" "," ",IF(A20="Totals",SUM($F$14:F19),+D20*($F$8/100))) -> 1050 | H20: =IF(A20=" "," ",IF(A20="Totals",SUM($H$14:H19),+D20-F20)) -> 1950
A21: 8 | B21: 116284.0169 | D21: =IF(A21=" "," ",IF(A21="Totals",SUM($D$14:D20),((+$A$8/100)*$B$14))) -> 3000 | F21: =IF(A21=" "," ",IF(A21="Totals",SUM($F$14:F20),+D21*($F$8/100))) -> 1050 | H21: =IF(A21=" "," ",IF(A21="Totals",SUM($H$14:H20),+D21-F21)) -> 1950
A22: 9 | B22: 119098.2178 | D22: =IF(A22=" "," ",IF(A22="Totals",SUM($D$14:D21),((+$A$8/100)*$B$14))) -> 3000 | F22: =IF(A22=" "," ",IF(A22="Totals",SUM($F$14:F21),+D22*($F$8/100))) -> 1050 | H22: =IF(A22=" "," ",IF(A22="Totals",SUM($H$14:H21),+D22-F22)) -> 1950
A23: 10 | B23: 122053.1286 | D23: =IF(A23=" "," ",IF(A23="Totals",SUM($D$14:D22),((+$A$8/100)*$B$14))) -> 3000 | F23: =IF(A23=" "," ",IF(A23="Totals",SUM($F$14:F22),+D23*($F$8/100))) -> 1050 | H23: =IF(A23=" "," ",IF(A23="Totals",SUM($H$14:H22),+D23-F23)) -> 1950
A24: 11 | B24: 125155.7851 | D24: =IF(A24=" "," ",IF(A24="Totals",SUM($D$14:D23),((+$A$8/100)*$B$14))) -> 3000 | F24: =IF(A24=" "," ",IF(A24="Totals",SUM($F$14:F23),+D24*($F$8/100))) -> 1050 | H24: =IF(A24=" "," ",IF(A24="Totals",SUM($H$14:H23),+D24-F24)) -> 1950
A25: 12 | B25: 128413.5743 | D25: =IF(A25=" "," ",IF(A25="Totals",SUM($D$14:D24),((+$A$8/100)*$B$14))) -> 3000 | F25: =IF(A25=" "," ",IF(A25="Totals",SUM($F$14:F24),+D25*($F$8/100))) -> 1050 | H25: =IF(A25=" "," ",IF(A25="Totals",SUM($H$14:H24),+D25-F25)) -> 1950
A26: 13 | B26: 131834.253 | D26: =IF(A26=" "," ",IF(A26="Totals",SUM($D$14:D25),((+$A$8/100)*$B$14))) -> 3000 | F26: =IF(A26=" "," ",IF(A26="Totals",SUM($F$14:F25),+D26*($F$8/100))) -> 1050 | H26: =IF(A26=" "," ",IF(A26="Totals",SUM($H$14:H25),+D26-F26)) -> 1950
A27: 14 | B27: 135425.9657 | D27: =IF(A27=" "," ",IF(A27="Totals",SUM($D$14:D26),((+$A$8/100)*$B$14))) -> 3000 | F27: =IF(A27=" "," ",IF(A27="Totals",SUM($F$14:F26),+D27*($F$8/100))) -> 1050 | H27: =IF(A27=" "," ",IF(A27="Totals",SUM($H$14:H26),+D27-F27)) -> 1950
A28: 15 | B28: 139197.264 | D28: =IF(A28=" "," ",IF(A28="Totals",SUM($D$14:D27),((+$A$8/100)*$B$14))) -> 3000 | F28: =IF(A28=" "," ",IF(A28="Totals",SUM($F$14:F27),+D28*($F$8/100))) -> 1050 | H28: =IF(A28=" "," ",IF(A28="Totals",SUM($H$14:H27),+D28-F28)) -> 1950
A29: 16 | B29: 143157.1272 | D29: =IF(A29=" "," ",IF(A29="Totals",SUM($D$14:D28),((+$A$8/100)*$B$14))) -> 3000 | F29: =IF(A29=" "," ",IF(A29="Totals",SUM($F$14:F28),+D29*($F$8/100))) -> 1050 | H29: =IF(A29=" "," ",IF(A29="Totals",SUM($H$14:H28),+D29-F29)) -> 1950
A30: 17 | B30: 147314.9835 | D30: =IF(A30=" "," ",IF(A30="Totals",SUM($D$14:D29),((+$A$8/100)*$B$14))) -> 3000 | F30: =IF(A30=" "," ",IF(A30="Totals",SUM($F$14:F29),+D30*($F$8/100))) -> 1050 | H30: =IF(A30=" "," ",IF(A30="Totals",SUM($H$14:H29),+D30-F30)) -> 1950
A31: 18 | B31: 151680.7327 | D31: =IF(A31=" "," ",IF(A31="Totals",SUM($D$14:D30),((+$A$8/100)*$B$14))) -> 3000 | F31: =IF(A31=" "," ",IF(A31="Totals",SUM($F$14:F30),+D31*($F$8/100))) -> 1050 | H31: =IF(A31=" "," ",IF(A31="Totals",SUM($H$14:H30),+D31-F31)) -> 1950
A32: 19 | B32: 156264.7693 | D32: =IF(A32=" "," ",IF(A32="Totals",SUM($D$14:D31),((+$A$8/100)*$B$14))) -> 3000 | F32: =IF(A32=" "," ",IF(A32="Totals",SUM($F$14:F31),+D32*($F$8/100))) -> 1050 | H32: =IF(A32=" "," ",IF(A32="Totals",SUM($H$14:H31),+D32-F32)) -> 1950
A33: 20 | B33: 161078.0078 | D33: =IF(A33=" "," ",IF(A33="Totals",SUM($D$14:D32),((+$A$8/100)*$B$14))) -> 3000 | F33: =IF(A33=" "," ",IF(A33="Totals",SUM($F$14:F32),+D33*($F$8/100))) -> 1050 | H33: =IF(A33=" "," ",IF(A33="Totals",SUM($H$14:H32),+D33-F33)) -> 1950
A34: 21 | B34: 166131.9082 | D34: =IF(A34=" "," ",IF(A34="Totals",SUM($D$14:D33),((+$A$8/100)*$B$14))) -> 3000 | F34: =IF(A34=" "," ",IF(A34="Totals",SUM($F$14:F33),+D34*($F$8/100))) -> 1050 | H34: =IF(A34=" "," ",IF(A34="Totals",SUM($H$14:H33),+D34-F34)) -> 1950
A35: 22 | B35: 171438.5036 | D35: =IF(A35=" "," ",IF(A35="Totals",SUM($D$14:D34),((+$A$8/100)*$B$14))) -> 3000 | F35: =IF(A35=" "," ",IF(A35="Totals",SUM($F$14:F34),+D35*($F$8/100))) -> 1050 | H35: =IF(A35=" "," ",IF(A35="Totals",SUM($H$14:H34),+D35-F35)) -> 1950
A36: 23 | B36: 177010.4288 | D36: =IF(A36=" "," ",IF(A36="Totals",SUM($D$14:D35),((+$A$8/100)*$B$14))) -> 3000 | F36: =IF(A36=" "," ",IF(A36="Totals",SUM($F$14:F35),+D36*($F$8/100))) -> 1050 | H36: =IF(A36=" "," ",IF(A36="Totals",SUM($H$14:H35),+D36-F36)) -> 1950
A37: 24 | B37: 182860.9502 | D37: =IF(A37=" "," ",IF(A37="Totals",SUM($D$14:D36),((+$A$8/100)*$B$14))) -> 3000 | F37: =IF(A37=" "," ",IF(A37="Totals",SUM($F$14:F36),+D37*($F$8/100))) -> 1050 | H37: =IF(A37=" "," ",IF(A37="Totals",SUM($H$14:H36),+D37-F37)) -> 1950
A38: 25 | B38: 189003.9977 | D38: =IF(A38=" "," ",IF(A38="Totals",SUM($D$14:D37),((+$A$8/100)*$B$14))) -> 3000 | F38: =IF(A38=" "," ",IF(A38="Totals",SUM($F$14:F37),+D38*($F$8/100))) -> 1050 | H38: =IF(A38=" "," ",IF(A38="Totals",SUM($H$14:H37),+D38-F38)) -> 1950
A39: Totals | B39: 195454.1976 | D39: =IF(A39=" "," ",IF(A39="Totals",SUM($D$14:D38),((+$A$8/100)*$B$14))) -> 75000 | F39: =IF(A39=" "," ",IF(A39="Totals",SUM($F$14:F38),+D39*($F$8/100))) -> 26250 | H39: =IF(A39=" "," ",IF(A39="Totals",SUM($H$14:H38),+D39-F39)) -> 48750
D40: =IF(A40=" "," ",IF(A40="Totals",SUM($D$14:D39),((+$A$8/100)*$B$14))) ->  | F40: =IF(A40=" "," ",IF(A40="Totals",SUM($F$14:F39),+D40*($F$8/100))) ->  | H40: =IF(A40=" "," ",IF(A40="Totals",SUM($H$14:H39),+D40-F40)) -> 
D41: =IF(A41=" "," ",IF(A41="Totals",SUM($D$14:D40),((+$A$8/100)*$B$14))) ->  | F41: =IF(A41=" "," ",IF(A41="Totals",SUM($F$14:F40),+D41*($F$8/100))) ->  | H41: =IF(A41=" "," ",IF(A41="Totals",SUM($H$14:H40),+D41-F41)) -> 
D42: =IF(A42=" "," ",IF(A42="Totals",SUM($D$14:D41),((+$A$8/100)*$B$14))) ->  | F42: =IF(A42=" "," ",IF(A42="Totals",SUM($F$14:F41),+D42*($F$8/100))) ->  | H42: =IF(A42=" "," ",IF(A42="Totals",SUM($H$14:H41),+D42-F42)) -> 
D43: =IF(A43=" "," ",IF(A43="Totals",SUM($D$14:D42),((+$A$8/100)*$B$14))) ->  | F43: =IF(A43=" "," ",IF(A43="Totals",SUM($F$14:F42),+D43*($F$8/100))) ->  | H43: =IF(A43=" "," ",IF(A43="Totals",SUM($H$14:H42),+D43-F43)) -> 
D44: =IF(A44=" "," ",IF(A44="Totals",SUM($D$14:D43),((+$A$8/100)*$B$14))) ->  | F44: =IF(A44=" "," ",IF(A44="Totals",SUM($F$14:F43),+D44*($F$8/100))) ->  | H44: =IF(A44=" "," ",IF(A44="Totals",SUM($H$14:H43),+D44-F44)) -> 
D45: =IF(A45=" "," ",IF(A45="Totals",SUM($D$14:D44),((+$A$8/100)*$B$14))) ->  | F45: =IF(A45=" "," ",IF(A45="Totals",SUM($F$14:F44),+D45*($F$8/100))) ->  | H45: =IF(A45=" "," ",IF(A45="Totals",SUM($H$14:H44),+D45-F45)) -> 
D46: =IF(A46=" "," ",IF(A46="Totals",SUM($D$14:D45),((+$A$8/100)*$B$14))) ->  | F46: =IF(A46=" "," ",IF(A46="Totals",SUM($F$14:F45),+D46*($F$8/100))) ->  | H46: =IF(A46=" "," ",IF(A46="Totals",SUM($H$14:H45),+D46-F46)) -> 
D47: =IF(A47=" "," ",IF(A47="Totals",SUM($D$14:D46),((+$A$8/100)*$B$14))) ->  | F47: =IF(A47=" "," ",IF(A47="Totals",SUM($F$14:F46),+D47*($F$8/100))) ->  | H47: =IF(A47=" "," ",IF(A47="Totals",SUM($H$14:H46),+D47-F47)) -> 
D48: =IF(A48=" "," ",IF(A48="Totals",SUM($D$14:D47),((+$A$8/100)*$B$14))) ->  | F48: =IF(A48=" "," ",IF(A48="Totals",SUM($F$14:F47),+D48*($F$8/100))) ->  | H48: =IF(A48=" "," ",IF(A48="Totals",SUM($H$14:H47),+D48-F48)) -> 
D49: =IF(A49=" "," ",IF(A49="Totals",SUM($D$14:D48),((+$A$8/100)*$B$14))) ->  | F49: =IF(A49=" "," ",IF(A49="Totals",SUM($F$14:F48),+D49*($F$8/100))) ->  | H49: =IF(A49=" "," ",IF(A49="Totals",SUM($H$14:H48),+D49-F49)) -> 
D50: =IF(A50=" "," ",IF(A50="Totals",SUM($D$14:D49),((+$A$8/100)*$B$14))) ->  | F50: =IF(A50=" "," ",IF(A50="Totals",SUM($F$14:F49),+D50*($F$8/100))) ->  | H50: =IF(A50=" "," ",IF(A50="Totals",SUM($H$14:H49),+D50-F50)) -> 
D51: =IF(A51=" "," ",IF(A51="Totals",SUM($D$14:D50),((+$A$8/100)*$B$14))) ->  | F51: =IF(A51=" "," ",IF(A51="Totals",SUM($F$14:F50),+D51*($F$8/100))) ->  | H51: =IF(A51=" "," ",IF(A51="Totals",SUM($H$14:H50),+D51-F51)) -> 
D52: =IF(A52=" "," ",IF(A52="Totals",SUM($D$14:D51),((+$A$8/100)*$B$14))) ->  | F52: =IF(A52=" "," ",IF(A52="Totals",SUM($F$14:F51),+D52*($F$8/100))) ->  | H52: =IF(A52=" "," ",IF(A52="Totals",SUM($H$14:H51),+D52-F52)) -> 
D53: =IF(A53=" "," ",IF(A53="Totals",SUM($D$14:D52),((+$A$8/100)*$B$14))) ->  | F53: =IF(A53=" "," ",IF(A53="Totals",SUM($F$14:F52),+D53*($F$8/100))) ->  | H53: =IF(A53=" "," ",IF(A53="Totals",SUM($H$14:H52),+D53-F53)) -> 
D54: =IF(A54=" "," ",IF(A54="Totals",SUM($D$14:D53),((+$A$8/100)*$B$14))) ->  | F54: =IF(A54=" "," ",IF(A54="Totals",SUM($F$14:F53),+D54*($F$8/100))) ->  | H54: =IF(A54=" "," ",IF(A54="Totals",SUM($H$14:H53),+D54-F54)) -> 

Sheet Random Returns
A1: Random Returns
C4: Initial Balance | F4: Withdrawal Rate | H4: Participation Rate
C5: 250000 | F5: 0.05 | H5: 0.4
C10: Beginning | E10: Historical | F10: Annual | H10: Beginning | J10: Annuity | K10: Annual
C11: Balance | E11: Return | F11: Withdrawal | H11: Balance | J11: Return | K11: Withdrawal
C12: =C5 -> 250000 | D12: =RAND()*(1-100)+100 -> 79.96995744 | E12: 0.1278 | F12: =$C$5*$F$5 -> 12500 | H12: =C5 -> 250000 | I12: =RAND()*(1-100)+100 -> 91.17812236 | J12: =IF(E12>0,E12*$H$5,0) -> 0.05112 | K12: =$C$5*$F$5 -> 12500
C13: =C12*(1+E12)-F12 -> 269450 | D13: =RAND()*(1-100)+100 -> 5.33946726 | E13: -0.0112 | F13: =$C$5*$F$5 -> 12500 | H13: =H12*(1+J12)-K12 -> 250280 | I13: =RAND()*(1-100)+100 -> 47.3248499 | J13: =IF(E13>0,E13*$H$5,0) -> 0 | K13: =$C$5*$F$5 -> 12500
C14: =C13*(1+E13)-F13 -> 253932.16 | D14: =RAND()*(1-100)+100 -> 42.71091717 | E14: 0.2638 | F14: 12500 | H14: =H13*(1+J13)-K13 -> 237780 | I14: =RAND()*(1-100)+100 -> 14.43802908 | J14: =IF(E14>0,E14*$H$5,0) -> 0.10552 | K14: 12500
C15: 308419.4638 | D15: =RAND()*(1-100)+100 -> 6.78093829 | E15: -0.1304 | F15: 12500 | H15: 250370.5456 | I15: =RAND()*(1-100)+100 -> 53.62984989 | J15: =IF(E15>0,E15*$H$5,0) -> 0 | K15: 12500
C16: 255701.5657 | D16: =RAND()*(1-100)+100 -> 50.82338481 | E16: 0.2345 | F16: 12500 | H16: 237870.5456 | I16: =RAND()*(1-100)+100 -> 51.18026071 | J16: =IF(E16>0,E16*$H$5,0) -> 0.0938 | K16: 12500
C17: 303163.5829 | D17: =RAND()*(1-100)+100 -> 12.69071647 | E17: -0.3849 | F17: 12500 | H17: 247682.8028 | I17: =RAND()*(1-100)+100 -> 15.59650456 | J17: =IF(E17>0,E17*$H$5,0) -> 0 | K17: 12500
C18: 173975.9198 | D18: =RAND()*(1-100)+100 -> 87.16593489 | E18: 0.0422 | F18: 12500 | H18: 235182.8028 | I18: =RAND()*(1-100)+100 -> 54.28228542 | J18: =IF(E18>0,E18*$H$5,0) -> 0.01688 | K18: 12500
C19: 168817.7037 | D19: =RAND()*(1-100)+100 -> 9.033124745 | E19: 0.1362 | F19: 12500 | H19: =H18*(1+J18)-K18 -> 226652.6885 | I19: =RAND()*(1-100)+100 -> 99.1046514 | J19: =IF(E19>0,E19*$H$5,0) -> 0.05448 | K19: 12500
C20: 179310.6749 | D20: =RAND()*(1-100)+100 -> 27.72356293 | E20: 0.0899 | F20: 12500 | H20: 226500.727 | I20: =RAND()*(1-100)+100 -> 88.78370243 | J20: =IF(E20>0,E20*$H$5,0) -> 0.03596 | K20: 12500
C21: 182930.7046 | D21: =RAND()*(1-100)+100 -> 8.17806333 | E21: 0.1951 | F21: 12500 | H21: 222145.6931 | I21: =RAND()*(1-100)+100 -> 92.11069911 | J21: =IF(E21>0,E21*$H$5,0) -> 0.07804 | K21: 12500
C22: 206120.485 | D22: =RAND()*(1-100)+100 -> 35.68354137 | E22: 0.03 | F22: 12500 | H22: 226981.943 | I22: =RAND()*(1-100)+100 -> 93.06028561 | J22: =IF(E22>0,E22*$H$5,0) -> 0.012 | K22: 12500
C23: 199804.0996 | D23: =RAND()*(1-100)+100 -> 17.23514524 | E23: -0.1014 | F23: 12500 | H23: 217205.7263 | I23: =RAND()*(1-100)+100 -> 88.50675966 | J23: =IF(E23>0,E23*$H$5,0) -> 0 | K23: 12500
C24: 167043.9639 | D24: =RAND()*(1-100)+100 -> 6.224823484 | E24: -0.2337 | F24: 12500 | H24: 204705.7263 | I24: =RAND()*(1-100)+100 -> 81.36996185 | J24: =IF(E24>0,E24*$H$5,0) -> 0 | K24: 12500
C25: 115505.7895 | F25: 12500 | H25: 192205.7263 | J25: =IF(B25=1991,0.1315,IF(B25=1992,0.0446,IF(B25=1993,0.0353,IF(B25=1994,0,IF(B25=1995,0.1705,IF(B25=1996,0.1013,IF(B25=1997,0.155,IF(B25=1998,0.1335,IF(B25=1999,0.0975,IF(B25=2000,0,IF(B25=2001,0,IF(B25=2002,0,IF(B25=2003,0.1319,IF(B25=2004,0.045,IF(B25=2005,0.03,IF(B25=2006,0.0681,IF(B25=2007,0.0422,IF(B25=2008,0,IF(B25=2009,0.1173,IF(B25=2010,0.0639,IF(B25=2011,0," "))))))))))))))))))))) ->  | K25: 12500
